[Event "*** Titled Tuesday Blitz"]
[Site "Chess.com"]
[Date "2020.03.03"]
[Round "7"]
[White "Vusatiuk_Vladimir"]
[Black "MateusViageiro"]
[Result "1-0"]
[WhiteElo "2376"]
[BlackElo "2196"]
[TimeControl "180+1"]
[EndTime "14:16:23 PST"]
[Termination "Vusatiuk_Vladimir won by resignation"]

1. e4 {[%clk 0:03:00.9]} 1... c5 {[%clk 0:02:59.2]} 2. Nf3 {[%clk 0:02:58.8]}
2... d6 {[%clk 0:02:58.9]} 3. d4 {[%clk 0:02:58.8]} 3... cxd4 {[%clk 0:02:58.4]}
4. Qxd4 {[%clk 0:02:59.7]} 4... Nc6 {[%clk 0:02:57]} 5. Qe3 {[%clk 0:02:59.7]}
5... Nf6 {[%clk 0:02:54.8]} 6. Be2 {[%clk 0:02:58.8]} 6... e6 {[%clk 0:02:52.1]}
7. O-O {[%clk 0:02:56.2]} 7... Be7 {[%clk 0:02:52.2]} 8. Rd1 {[%clk 0:02:56.4]}
8... Qc7 {[%clk 0:02:50.8]} 9. c4 {[%clk 0:02:54.4]} 9... O-O {[%clk 0:02:49.3]}
10. Nc3 {[%clk 0:02:54.6]} 10... a6 {[%clk 0:02:48.4]} 11. b3 {[%clk 0:02:54.2]}
11... Ng4 {[%clk 0:02:44.2]} 12. Qd2 {[%clk 0:02:49.4]} 12... Nge5 {[%clk
0:02:41.1]} 13. Bb2 {[%clk 0:02:47.4]} 13... b6 {[%clk 0:02:39.7]} 14. Rac1
{[%clk 0:02:46.3]} 14... Bb7 {[%clk 0:02:39.1]} 15. Nd5 {[%clk 0:02:43.8]} 15...
exd5 {[%clk 0:02:33.6]} 16. cxd5 {[%clk 0:02:42.9]} 16... Qd7 {[%clk 0:02:16.7]}
17. dxc6 {[%clk 0:02:40.7]} 17... Nxc6 {[%clk 0:02:16]} 18. e5 {[%clk
0:02:38.7]} 18... Rad8 {[%clk 0:02:12]} 19. Qc3 {[%clk 0:02:31]} 19... f6 {[%clk
0:01:56.5]} 20. Bc4+ {[%clk 0:02:22.1]} 20... Kh8 {[%clk 0:01:49.8]} 21. e6
{[%clk 0:02:15]} 21... Qe8 {[%clk 0:01:47.3]} 22. Bd5 {[%clk 0:02:14.2]} 22...
Rc8 {[%clk 0:01:41.5]} 23. Qe3 {[%clk 0:02:14.2]} 23... Qd8 {[%clk 0:01:31.5]}
24. Nh4 {[%clk 0:01:58]} 24... f5 {[%clk 0:01:12.6]} 25. Ng6+ {[%clk 0:01:47.3]}
25... Kg8 {[%clk 0:01:09]} 26. Nxe7+ {[%clk 0:01:42.2]} 26... Qxe7 {[%clk
0:01:02.6]} 27. Qf3 {[%clk 0:01:39.8]} 27... Na5 {[%clk 0:00:46.3]} 28. b4
{[%clk 0:01:37.8]} 28... Bxd5 {[%clk 0:00:34.2]} 29. Qxd5 {[%clk 0:01:38.7]}
29... Nb7 {[%clk 0:00:30.3]} 30. Rxc8 {[%clk 0:01:18.9]} 30... Rxc8 {[%clk
0:00:29.1]} 31. Qxf5 {[%clk 0:01:19.4]} 31... Rf8 {[%clk 0:00:28.2]} 32. Qe4
{[%clk 0:01:04.5]} 32... a5 {[%clk 0:00:24.7]} 33. a3 {[%clk 0:01:04]} 33...
axb4 {[%clk 0:00:23.4]} 34. axb4 {[%clk 0:01:04.9]} 34... Nd8 {[%clk 0:00:23.7]}
35. Re1 {[%clk 0:00:58.6]} 35... Re8 {[%clk 0:00:23]} 36. Qd4 {[%clk 0:00:56.6]}
36... h6 {[%clk 0:00:15.9]} 37. f4 {[%clk 0:00:55]} 37... Nc6 {[%clk 0:00:15.9]}
38. Qxb6 {[%clk 0:00:53.3]} 38... Nd8 {[%clk 0:00:13.8]} 39. Qd4 {[%clk
0:00:52.4]} 39... Nc6 {[%clk 0:00:13.4]} 40. Qc3 {[%clk 0:00:52.9]} 40... Rc8
{[%clk 0:00:12.5]} 41. b5 {[%clk 0:00:50.8]} 41... Na7 {[%clk 0:00:11.8]} 42.
Qb3 {[%clk 0:00:46.8]} 42... d5 {[%clk 0:00:08.3]} 43. b6 {[%clk 0:00:43.9]}
43... Nc6 {[%clk 0:00:07.5]} 44. Qxd5 {[%clk 0:00:41]} 44... Nb4 {[%clk
0:00:07.4]} 45. Qd7 {[%clk 0:00:38.6]} 45... Re8 {[%clk 0:00:06]} 46. Qxe7
{[%clk 0:00:37.1]} 46... Rxe7 {[%clk 0:00:05.9]} 47. Ba3 {[%clk 0:00:37.5]}
47... Nd3 {[%clk 0:00:05.1]} 48. Bxe7 {[%clk 0:00:37.3]} 48... Nxe1 {[%clk
0:00:06]} 49. b7 {[%clk 0:00:37.6]} 1-0

[Event "*** Titled Tuesday Blitz"]
[Site "Chess.com"]
[Date "2020.03.03"]
[Round "7"]
[White "Barcelona_Guy"]
[Black "MarcoRiehle"]
[Result "1-0"]
[WhiteElo "2607"]
[BlackElo "2739"]
[TimeControl "180+1"]
[EndTime "14:16:28 PST"]
[Termination "Barcelona_Guy won by checkmate"]

1. d4 {[%clk 0:03:00.9]} 1... d5 {[%clk 0:02:59.1]} 2. c4 {[%clk 0:03:00.9]}
2... e6 {[%clk 0:02:53.6]} 3. Nf3 {[%clk 0:03:01.1]} 3... Nf6 {[%clk 0:02:50.9]}
4. g3 {[%clk 0:03:01.6]} 4... dxc4 {[%clk 0:02:44.4]} 5. Bg2 {[%clk 0:03:01.7]}
5... Bb4+ {[%clk 0:02:31.6]} 6. Bd2 {[%clk 0:02:59.9]} 6... a5 {[%clk 0:02:32]}
7. a3 {[%clk 0:02:56.3]} 7... Bxd2+ {[%clk 0:02:28.1]} 8. Nbxd2 {[%clk
0:02:57.2]} 8... b5 {[%clk 0:02:28]} 9. b3 {[%clk 0:02:53.9]} 9... cxb3 {[%clk
0:02:27.2]} 10. Qxb3 {[%clk 0:02:53.7]} 10... c6 {[%clk 0:02:26.3]} 11. O-O
{[%clk 0:02:53.1]} 11... O-O {[%clk 0:02:17.2]} 12. Rfc1 {[%clk 0:02:53.5]}
12... a4 {[%clk 0:02:16]} 13. Qb2 {[%clk 0:02:53.7]} 13... Bb7 {[%clk
0:02:09.1]} 14. Ne5 {[%clk 0:02:52.5]} 14... Nd5 {[%clk 0:02:08.8]} 15. Ne4
{[%clk 0:02:47.6]} 15... Ra7 {[%clk 0:02:05.9]} 16. Nc5 {[%clk 0:02:45.1]} 16...
Ba8 {[%clk 0:02:01.1]} 17. Rc2 {[%clk 0:02:26.1]} 17... Na6 {[%clk 0:01:53.9]}
18. Rac1 {[%clk 0:02:23.6]} 18... b4 {[%clk 0:01:39]} 19. Nxa6 {[%clk 0:02:18]}
19... Rxa6 {[%clk 0:01:39]} 20. axb4 {[%clk 0:02:15.7]} 20... a3 {[%clk
0:01:37.1]} 21. Qb3 {[%clk 0:02:15.5]} 21... Qb6 {[%clk 0:01:35.5]} 22. Nd7
{[%clk 0:02:07.2]} 22... Qxd4 {[%clk 0:01:34.6]} 23. Nxf8 {[%clk 0:02:03.8]}
23... Kxf8 {[%clk 0:01:34.9]} 24. b5 {[%clk 0:02:02.5]} 24... cxb5 {[%clk
0:01:33.2]} 25. Qxb5 {[%clk 0:01:57.1]} 25... Ra7 {[%clk 0:01:27.4]} 26. Rc5
{[%clk 0:01:06.7]} 26... Qa4 {[%clk 0:01:00.7]} 27. Rc8+ {[%clk 0:00:44.8]}
27... Ke7 {[%clk 0:01:00.5]} 28. Qc5+ {[%clk 0:00:44.6]} 28... Kf6 {[%clk
0:00:58.9]} 29. e4 {[%clk 0:00:39.1]} 29... a2 {[%clk 0:00:55.7]} 30. Ra1 {[%clk
0:00:39]} 30... Ra5 {[%clk 0:00:37.3]} 31. Qc1 {[%clk 0:00:33.1]} 31... Ne7
{[%clk 0:00:31.5]} 32. Qb2+ {[%clk 0:00:25]} 32... Kg6 {[%clk 0:00:30]} 33. Rc2
{[%clk 0:00:22.1]} 33... Bxe4 {[%clk 0:00:26.8]} 34. Rxa2 {[%clk 0:00:13]} 34...
Bxc2 {[%clk 0:00:22.4]} 35. Rxa4 {[%clk 0:00:11.6]} 35... Bxa4 {[%clk
0:00:23.3]} 36. Qb4 {[%clk 0:00:10]} 36... Ra7 {[%clk 0:00:19.1]} 37. Qg4+
{[%clk 0:00:08.8]} 37... Kh6 {[%clk 0:00:19.3]} 38. Qd4 {[%clk 0:00:06.9]} 38...
Ra5 {[%clk 0:00:13.8]} 39. Qd2+ {[%clk 0:00:06.8]} 39... Rg5 {[%clk 0:00:12.9]}
40. h4 {[%clk 0:00:07]} 40... f6 {[%clk 0:00:13.3]} 41. hxg5+ {[%clk 0:00:07.4]}
41... fxg5 {[%clk 0:00:14.2]} 42. Qb4 {[%clk 0:00:07]} 42... Nf5 {[%clk
0:00:11]} 43. Qxa4 {[%clk 0:00:06.9]} 43... Nd6 {[%clk 0:00:10.1]} 44. Qa6
{[%clk 0:00:06.9]} 44... Ne8 {[%clk 0:00:08.1]} 45. Qxe6+ {[%clk 0:00:07.2]}
45... Nf6 {[%clk 0:00:09]} 46. g4 {[%clk 0:00:07.5]} 46... Kg6 {[%clk
0:00:08.9]} 47. Be4+ {[%clk 0:00:08]} 47... Kh6 {[%clk 0:00:08.8]} 48. Bf5
{[%clk 0:00:08.9]} 48... g6 {[%clk 0:00:08.7]} 49. Kg2 {[%clk 0:00:07.8]} 49...
Kg7 {[%clk 0:00:07.5]} 50. Qe7+ {[%clk 0:00:08.2]} 50... Kh6 {[%clk 0:00:07.8]}
51. Qf8# {[%clk 0:00:08.3]} 1-0

[Event "*** Titled Tuesday Blitz"]
[Site "Chess.com"]
[Date "2020.03.03"]
[Round "7"]
[White "Gabrielian_Artur"]
[Black "MiroVlasenko"]
[Result "1-0"]
[WhiteElo "2789"]
[BlackElo "2647"]
[TimeControl "180+1"]
[EndTime "14:16:31 PST"]
[Termination "Gabrielian_Artur won by resignation"]

1. e4 {[%clk 0:03:00.9]} 1... Nc6 {[%clk 0:02:59.6]} 2. Nf3 {[%clk 0:03:00.4]}
2... d6 {[%clk 0:02:59.6]} 3. d4 {[%clk 0:02:58.6]} 3... Nf6 {[%clk 0:02:59.5]}
4. Nc3 {[%clk 0:02:58.2]} 4... g6 {[%clk 0:03:00]} 5. Be3 {[%clk 0:02:56.4]}
5... Bg7 {[%clk 0:02:59.4]} 6. Qd2 {[%clk 0:02:56.1]} 6... Ng4 {[%clk
0:02:59.2]} 7. Bg5 {[%clk 0:02:55.2]} 7... h6 {[%clk 0:02:57.2]} 8. Bh4 {[%clk
0:02:55.2]} 8... g5 {[%clk 0:02:57.5]} 9. Bg3 {[%clk 0:02:55.4]} 9... e5 {[%clk
0:02:57.9]} 10. Bb5 {[%clk 0:02:49.9]} 10... exd4 {[%clk 0:02:52.1]} 11. Nxd4
{[%clk 0:02:48.4]} 11... Bd7 {[%clk 0:02:51.9]} 12. Bxc6 {[%clk 0:02:45.7]}
12... bxc6 {[%clk 0:02:51.6]} 13. O-O-O {[%clk 0:02:37.8]} 13... Rb8 {[%clk
0:02:50.9]} 14. h4 {[%clk 0:02:29]} 14... Ne5 {[%clk 0:02:40.6]} 15. Qe2 {[%clk
0:02:25.4]} 15... Qf6 {[%clk 0:02:30]} 16. hxg5 {[%clk 0:01:44.8]} 16... Qxg5+
{[%clk 0:02:20.9]} 17. Kb1 {[%clk 0:01:43.9]} 17... Ng6 {[%clk 0:02:20.3]} 18.
e5 {[%clk 0:01:19.7]} 18... O-O {[%clk 0:02:10.5]} 19. Ne4 {[%clk 0:01:16.4]}
19... Qe7 {[%clk 0:01:55.1]} 20. exd6 {[%clk 0:01:15.2]} 20... cxd6 {[%clk
0:01:39.5]} 21. Bxd6 {[%clk 0:01:15]} 21... Qd8 {[%clk 0:01:36.4]} 22. Bxb8
{[%clk 0:01:14.1]} 22... Qxb8 {[%clk 0:01:36.1]} 23. Nb3 {[%clk 0:01:14.1]}
23... Bf5 {[%clk 0:01:26.9]} 24. g4 {[%clk 0:01:10.5]} 24... Be6 {[%clk
0:01:24.9]} 25. Nec5 {[%clk 0:01:10.4]} 25... Bd5 {[%clk 0:01:20.6]} 26. Nd7
{[%clk 0:01:09.7]} 26... Qd8 {[%clk 0:01:16.1]} 27. Nxf8 {[%clk 0:01:07.4]}
27... Qxf8 {[%clk 0:01:16.3]} 28. Rxd5 {[%clk 0:01:03]} 28... cxd5 {[%clk
0:01:15.8]} 29. Re1 {[%clk 0:01:01.4]} 29... Kh7 {[%clk 0:01:11.6]} 30. Qd3
{[%clk 0:00:58.5]} 30... Qb4 {[%clk 0:01:07.8]} 31. Rc1 {[%clk 0:00:39.8]} 31...
a5 {[%clk 0:00:58.4]} 32. c3 {[%clk 0:00:39.3]} 32... Qxg4 {[%clk 0:00:57.8]}
33. Qxd5 {[%clk 0:00:37.5]} 33... a4 {[%clk 0:00:58.1]} 34. Nd4 {[%clk 0:00:36]}
34... a3 {[%clk 0:00:48.8]} 35. bxa3 {[%clk 0:00:35.8]} 35... Qf4 {[%clk
0:00:46.9]} 36. Qf5 {[%clk 0:00:32.8]} 36... Qb8+ {[%clk 0:00:45.5]} 37. Kc2
{[%clk 0:00:30.7]} 37... Kg8 {[%clk 0:00:44.2]} 38. Rb1 {[%clk 0:00:29.1]} 38...
Qa7 {[%clk 0:00:41.9]} 39. Rb3 {[%clk 0:00:27]} 39... Ne5 {[%clk 0:00:41.2]} 40.
Qc8+ {[%clk 0:00:25.9]} 40... Kh7 {[%clk 0:00:41]} 41. Qf5+ {[%clk 0:00:25.7]}
41... Kg8 {[%clk 0:00:40.8]} 42. f4 {[%clk 0:00:23.5]} 42... Nd7 {[%clk
0:00:35.3]} 43. Qd5 {[%clk 0:00:17.9]} 43... Nf6 {[%clk 0:00:28.7]} 44. Qc4
{[%clk 0:00:15.4]} 44... Qe7 {[%clk 0:00:25.7]} 45. a4 {[%clk 0:00:15.5]} 45...
Qe4+ {[%clk 0:00:24.2]} 46. Qd3 {[%clk 0:00:15.7]} 46... Qxf4 {[%clk 0:00:23.4]}
47. a5 {[%clk 0:00:14.7]} 47... Nd5 {[%clk 0:00:23.6]} 48. a6 {[%clk 0:00:13.3]}
48... Ne3+ {[%clk 0:00:20.3]} 49. Kb1 {[%clk 0:00:13.3]} 49... Qf2 {[%clk
0:00:18]} 50. Rb8+ {[%clk 0:00:11.7]} 50... Bf8 {[%clk 0:00:16.8]} 51. a7 {[%clk
0:00:12.2]} 51... Qe1+ {[%clk 0:00:16.5]} 52. Kb2 {[%clk 0:00:12.4]} 52... Qf2+
{[%clk 0:00:16.8]} 53. Kb3 {[%clk 0:00:11.8]} 1-0

[Event "*** Titled Tuesday Blitz"]
[Site "Chess.com"]
[Date "2020.03.03"]
[Round "7"]
[White "karwowskikacper"]
[Black "Gentlejimmy7"]
[Result "0-1"]
[WhiteElo "2407"]
[BlackElo "2695"]
[TimeControl "180+1"]
[EndTime "14:16:31 PST"]
[Termination "Gentlejimmy7 won on time"]

1. e4 {[%clk 0:03:00.9]} 1... c5 {[%clk 0:02:59.6]} 2. Nf3 {[%clk 0:03:00.3]}
2... Nc6 {[%clk 0:03:00.1]} 3. Nc3 {[%clk 0:02:59.4]} 3... e6 {[%clk 0:02:57]}
4. d4 {[%clk 0:02:56.8]} 4... cxd4 {[%clk 0:02:56.7]} 5. Nxd4 {[%clk 0:02:57.7]}
5... Nf6 {[%clk 0:02:57.1]} 6. Ndb5 {[%clk 0:02:56.7]} 6... Bc5 {[%clk
0:02:56.4]} 7. Bf4 {[%clk 0:02:49.4]} 7... O-O {[%clk 0:02:55.3]} 8. Bc7 {[%clk
0:02:45.9]} 8... Qe7 {[%clk 0:02:55.4]} 9. Bd6 {[%clk 0:02:45.9]} 9... Bxd6
{[%clk 0:02:55.8]} 10. Qxd6 {[%clk 0:02:46.8]} 10... Qd8 {[%clk 0:02:56.2]} 11.
O-O-O {[%clk 0:02:42.6]} 11... a6 {[%clk 0:02:56.6]} 12. Nd4 {[%clk 0:02:42.6]}
12... Na5 {[%clk 0:02:56.7]} 13. h3 {[%clk 0:02:35.7]} 13... b5 {[%clk
0:02:56.7]} 14. e5 {[%clk 0:02:29.8]} 14... Ne8 {[%clk 0:02:55.1]} 15. Qa3
{[%clk 0:02:19.8]} 15... Bb7 {[%clk 0:02:54.7]} 16. f3 {[%clk 0:02:16.4]} 16...
Qc7 {[%clk 0:02:47.9]} 17. Re1 {[%clk 0:02:13.2]} 17... Nc4 {[%clk 0:02:47.4]}
18. Bxc4 {[%clk 0:02:04.4]} 18... Qxc4 {[%clk 0:02:48.3]} 19. Nce2 {[%clk
0:02:01.9]} 19... a5 {[%clk 0:02:23.7]} 20. Qd3 {[%clk 0:01:56.4]} 20... Qxd3
{[%clk 0:02:18.9]} 21. cxd3 {[%clk 0:01:56.2]} 21... d6 {[%clk 0:02:13.7]} 22.
exd6 {[%clk 0:01:44.6]} 22... Nxd6 {[%clk 0:02:12.9]} 23. Nc3 {[%clk 0:01:44.6]}
23... b4 {[%clk 0:02:12.1]} 24. Ne4 {[%clk 0:01:45]} 24... Rfd8 {[%clk
0:02:08.9]} 25. Rd1 {[%clk 0:01:41.1]} 25... Ba6 {[%clk 0:02:02.6]} 26. Kb1
{[%clk 0:01:31.3]} 26... Nb7 {[%clk 0:01:56.5]} 27. Nc6 {[%clk 0:01:21.5]} 27...
Rxd3 {[%clk 0:01:54]} 28. Nf2 {[%clk 0:01:09.2]} 28... Rxd1+ {[%clk 0:01:49.6]}
29. Rxd1 {[%clk 0:01:10.1]} 29... Kf8 {[%clk 0:01:48]} 30. Ne4 {[%clk
0:01:00.7]} 30... Bb5 {[%clk 0:01:47.4]} 31. Nd4 {[%clk 0:00:49.2]} 31... Rd8
{[%clk 0:01:44.3]} 32. Kc1 {[%clk 0:00:43.8]} 32... Bc4 {[%clk 0:01:41.5]} 33.
b3 {[%clk 0:00:43.1]} 33... Bd5 {[%clk 0:01:41.7]} 34. Nf2 {[%clk 0:00:40.8]}
34... Rc8+ {[%clk 0:01:39]} 35. Kd2 {[%clk 0:00:34.4]} 35... Nd6 {[%clk
0:01:39.5]} 36. Rc1 {[%clk 0:00:33.7]} 36... Rxc1 {[%clk 0:01:38.5]} 37. Kxc1
{[%clk 0:00:34.6]} 37... Ke7 {[%clk 0:01:37.9]} 38. Nd3 {[%clk 0:00:29.4]} 38...
f6 {[%clk 0:01:32.9]} 39. Nf4 {[%clk 0:00:21.4]} 39... Kd7 {[%clk 0:01:23.2]}
40. Nxd5 {[%clk 0:00:20.9]} 40... exd5 {[%clk 0:01:23]} 41. Kd2 {[%clk
0:00:21.8]} 41... Nb7 {[%clk 0:01:22.5]} 42. Ke3 {[%clk 0:00:19.3]} 42... Nd8
{[%clk 0:01:21.5]} 43. Nf5 {[%clk 0:00:18.6]} 43... Ne6 {[%clk 0:01:21.7]} 44.
h4 {[%clk 0:00:16.7]} 44... Kc6 {[%clk 0:01:20.4]} 45. g3 {[%clk 0:00:15.7]}
45... Kb5 {[%clk 0:01:16]} 46. Kd3 {[%clk 0:00:12]} 46... a4 {[%clk 0:01:13.2]}
47. Ne7 {[%clk 0:00:11.9]} 47... Nc5+ {[%clk 0:01:08.3]} 48. Kd4 {[%clk
0:00:11.6]} 48... Nxb3+ {[%clk 0:01:02.7]} 49. Kxd5 {[%clk 0:00:10.4]} 49... a3
{[%clk 0:01:03.6]} 50. Nf5 {[%clk 0:00:08.6]} 50... g6 {[%clk 0:00:58.4]} 51.
Nd6+ {[%clk 0:00:07.4]} 51... Ka4 {[%clk 0:00:54.7]} 52. Nc4 {[%clk 0:00:03.9]}
52... Nc1 {[%clk 0:00:52.8]} 53. Kc6 {[%clk 0:00:02.3]} 53... Nxa2 {[%clk
0:00:53]} 54. Nb6+ {[%clk 0:00:02.6]} 54... Kb3 {[%clk 0:00:52.2]} 55. Nd5
{[%clk 0:00:02.8]} 55... Nc3 {[%clk 0:00:50.9]} 0-1

[Event "*** Titled Tuesday Blitz"]
[Site "Chess.com"]
[Date "2020.03.03"]
[Round "7"]
[White "RoelandPruijssers"]
[Black "ChadBiryani"]
[Result "1-0"]
[WhiteElo "2671"]
[BlackElo "2445"]
[TimeControl "180+1"]
[EndTime "14:16:36 PST"]
[Termination "RoelandPruijssers won by resignation"]

1. e4 {[%clk 0:03:00.9]} 1... c5 {[%clk 0:02:58.2]} 2. Nf3 {[%clk 0:03:00.8]}
2... d6 {[%clk 0:02:57.8]} 3. d4 {[%clk 0:02:59.9]} 3... cxd4 {[%clk 0:02:58.1]}
4. Nxd4 {[%clk 0:03:00.8]} 4... Nf6 {[%clk 0:02:58.3]} 5. Nc3 {[%clk 0:03:01.3]}
5... g6 {[%clk 0:02:58.5]} 6. Be3 {[%clk 0:03:00.8]} 6... a6 {[%clk 0:02:58.3]}
7. f3 {[%clk 0:02:57.2]} 7... b5 {[%clk 0:02:57.9]} 8. a3 {[%clk 0:02:55.9]}
8... Bg7 {[%clk 0:02:55.9]} 9. Qd2 {[%clk 0:02:55.5]} 9... h5 {[%clk 0:02:56]}
10. O-O-O {[%clk 0:02:43.6]} 10... Bb7 {[%clk 0:02:54]} 11. Kb1 {[%clk
0:02:43.3]} 11... Nbd7 {[%clk 0:02:48.7]} 12. Nb3 {[%clk 0:02:43.4]} 12... Rc8
{[%clk 0:02:45.7]} 13. h4 {[%clk 0:02:40]} 13... Ne5 {[%clk 0:02:41.6]} 14. Qe1
{[%clk 0:02:33.6]} 14... O-O {[%clk 0:02:38.1]} 15. Bd4 {[%clk 0:02:04.7]} 15...
Nc4 {[%clk 0:02:31.5]} 16. e5 {[%clk 0:01:58.6]} 16... dxe5 {[%clk 0:02:22.2]}
17. Bxe5 {[%clk 0:01:56.6]} 17... Qb6 {[%clk 0:02:19.1]} 18. Bd4 {[%clk
0:01:56]} 18... Qc7 {[%clk 0:02:16.2]} 19. Bxc4 {[%clk 0:01:53.3]} 19... Qxc4
{[%clk 0:02:02.6]} 20. Qxe7 {[%clk 0:01:47.9]} 20... Rc7 {[%clk 0:01:58.2]} 21.
Qb4 {[%clk 0:01:29.1]} 21... Qxb4 {[%clk 0:01:41.4]} 22. axb4 {[%clk 0:01:28.7]}
22... Re8 {[%clk 0:01:42.1]} 23. Rhe1 {[%clk 0:01:20]} 23... Rxe1 {[%clk
0:01:31.5]} 24. Rxe1 {[%clk 0:01:20.9]} 24... Nd5 {[%clk 0:01:19.1]} 25. Re8+
{[%clk 0:01:08.5]} 25... Kh7 {[%clk 0:01:19.3]} 26. Bxg7 {[%clk 0:01:07.7]}
26... Kxg7 {[%clk 0:01:20]} 27. Nxd5 {[%clk 0:01:07.5]} 27... Bxd5 {[%clk
0:01:19.9]} 28. Nd4 {[%clk 0:00:56.9]} 28... Rc4 {[%clk 0:01:06.8]} 29. c3
{[%clk 0:00:54.8]} 29... Kf6 {[%clk 0:01:03]} 30. Rd8 {[%clk 0:00:50.6]} 30...
Be6 {[%clk 0:00:59.5]} 31. Rd6 {[%clk 0:00:49.3]} 31... Ke5 {[%clk 0:00:49.1]}
32. Rxa6 {[%clk 0:00:46.7]} 32... Bf5+ {[%clk 0:00:49.2]} 33. Kc1 {[%clk
0:00:45]} 33... Kf4 {[%clk 0:00:48.5]} 34. Rf6 {[%clk 0:00:33.3]} 34... Kg3
{[%clk 0:00:40.8]} 35. Rxf7 {[%clk 0:00:28.5]} 35... Kxg2 {[%clk 0:00:34.9]} 36.
Kd2 {[%clk 0:00:28.9]} 36... Bb1 {[%clk 0:00:27.7]} 37. b3 {[%clk 0:00:18.2]}
37... Rc8 {[%clk 0:00:26.2]} 38. Nxb5 {[%clk 0:00:18.8]} 38... Kh3 {[%clk
0:00:23.9]} 39. Rf4 {[%clk 0:00:14.2]} 39... Kg3 {[%clk 0:00:24.2]} 40. Rd4
{[%clk 0:00:13.5]} 40... Kxf3 {[%clk 0:00:20]} 41. Nd6 {[%clk 0:00:14.1]} 41...
Rf8 {[%clk 0:00:15.1]} 42. b5 {[%clk 0:00:14.1]} 42... Bf5 {[%clk 0:00:14.5]}
43. b6 {[%clk 0:00:13.7]} 43... Bg4 {[%clk 0:00:13.7]} 44. b7 {[%clk 0:00:13.6]}
44... Rb8 {[%clk 0:00:13.9]} 45. c4 {[%clk 0:00:13.3]} 45... Kg3 {[%clk
0:00:13.4]} 46. c5 {[%clk 0:00:13.4]} 46... Bf3 {[%clk 0:00:12.5]} 47. Rd3
{[%clk 0:00:10.5]} 47... Kf4 {[%clk 0:00:07.9]} 48. Rxf3+ {[%clk 0:00:10.7]}
48... Kxf3 {[%clk 0:00:08.5]} 49. c6 {[%clk 0:00:11.3]} 49... Rd8 {[%clk
0:00:09.2]} 50. Ke1 {[%clk 0:00:08.8]} 50... Kg4 {[%clk 0:00:03.2]} 51. c7
{[%clk 0:00:08.7]} 51... Rxd6 {[%clk 0:00:03.6]} 52. c8=Q+ {[%clk 0:00:08.8]}
52... Kxh4 {[%clk 0:00:03.8]} 53. b8=Q {[%clk 0:00:09.4]} 53... Rf6 {[%clk
0:00:03.2]} 54. Qd8 {[%clk 0:00:09.1]} 54... Kg5 {[%clk 0:00:02.7]} 55. Qe5+
{[%clk 0:00:09.7]} 55... Kh6 {[%clk 0:00:03.1]} 56. Qdxf6 {[%clk 0:00:10.4]} 1-0

[Event "*** Titled Tuesday Blitz"]
[Site "Chess.com"]
[Date "2020.03.03"]
[Round "7"]
[White "MikaelyanArman"]
[Black "Sunnika"]
[Result "1-0"]
[WhiteElo "2616"]
[BlackElo "2399"]
[TimeControl "180+1"]
[EndTime "14:16:36 PST"]
[Termination "MikaelyanArman won on time"]

1. e4 {[%clk 0:03:00.9]} 1... Nf6 {[%clk 0:02:59.1]} 2. e5 {[%clk 0:02:58.8]}
2... Nd5 {[%clk 0:02:59.3]} 3. Nf3 {[%clk 0:02:57.1]} 3... d6 {[%clk 0:02:58.7]}
4. d4 {[%clk 0:02:57.2]} 4... dxe5 {[%clk 0:02:58.4]} 5. Nxe5 {[%clk 0:02:57.1]}
5... c6 {[%clk 0:02:58.9]} 6. h3 {[%clk 0:02:57.5]} 6... Bf5 {[%clk 0:02:57.6]}
7. Qf3 {[%clk 0:02:39.9]} 7... e6 {[%clk 0:02:53.9]} 8. Bd3 {[%clk 0:02:39.3]}
8... Qf6 {[%clk 0:02:39.8]} 9. Bxf5 {[%clk 0:02:35.1]} 9... Qxf5 {[%clk
0:02:39.8]} 10. Qxf5 {[%clk 0:02:27.3]} 10... exf5 {[%clk 0:02:39.6]} 11. O-O
{[%clk 0:02:23.5]} 11... Nd7 {[%clk 0:02:37.9]} 12. Re1 {[%clk 0:02:12]} 12...
Be7 {[%clk 0:02:25.6]} 13. Nd2 {[%clk 0:02:04]} 13... f6 {[%clk 0:02:11.4]} 14.
Nd3 {[%clk 0:01:57.5]} 14... Kf7 {[%clk 0:02:08.8]} 15. c4 {[%clk 0:01:56.7]}
15... Nc7 {[%clk 0:01:59.4]} 16. b3 {[%clk 0:01:56.7]} 16... Rhe8 {[%clk
0:01:57.5]} 17. Nf3 {[%clk 0:01:54.2]} 17... Bf8 {[%clk 0:01:52.5]} 18. Bb2
{[%clk 0:01:51.8]} 18... Re4 {[%clk 0:01:50.5]} 19. Nd2 {[%clk 0:01:50.1]} 19...
Rxe1+ {[%clk 0:01:48.5]} 20. Rxe1 {[%clk 0:01:51]} 20... Re8 {[%clk 0:01:37.3]}
21. Kf1 {[%clk 0:01:50.7]} 21... g5 {[%clk 0:01:34.5]} 22. Rxe8 {[%clk
0:01:46.5]} 22... Kxe8 {[%clk 0:01:28.3]} 23. Ke2 {[%clk 0:01:44.4]} 23... Bd6
{[%clk 0:01:23.1]} 24. b4 {[%clk 0:01:31.4]} 24... Kf7 {[%clk 0:01:21.2]} 25. g3
{[%clk 0:01:24.1]} 25... h5 {[%clk 0:01:19.3]} 26. Ke3 {[%clk 0:01:21.3]} 26...
g4 {[%clk 0:01:07.4]} 27. h4 {[%clk 0:01:17.2]} 27... Ne6 {[%clk 0:01:03.4]} 28.
Nb3 {[%clk 0:01:16.6]} 28... b6 {[%clk 0:00:45.7]} 29. a3 {[%clk 0:01:14.8]}
29... f4+ {[%clk 0:00:45]} 30. gxf4 {[%clk 0:01:12.5]} 30... Ng7 {[%clk
0:00:44.4]} 31. Ke4 {[%clk 0:01:06.1]} 31... f5+ {[%clk 0:00:29.9]} 32. Ke3
{[%clk 0:01:06.3]} 32... Nf8 {[%clk 0:00:29.1]} 33. d5 {[%clk 0:01:04.9]} 33...
cxd5 {[%clk 0:00:28.9]} 34. cxd5 {[%clk 0:01:05.7]} 34... Ng6 {[%clk 0:00:27.5]}
35. Ne5+ {[%clk 0:01:05.8]} 35... Bxe5 {[%clk 0:00:22.9]} 36. fxe5 {[%clk
0:01:06.7]} 36... Nxh4 {[%clk 0:00:18.5]} 37. e6+ {[%clk 0:01:06.9]} 37... Nxe6
{[%clk 0:00:19.2]} 38. dxe6+ {[%clk 0:01:07.2]} 38... Kxe6 {[%clk 0:00:19.9]}
39. Nd4+ {[%clk 0:01:04.2]} 39... Kd5 {[%clk 0:00:16]} 40. Kf4 {[%clk
0:01:02.1]} 40... Ng2+ {[%clk 0:00:15.4]} 41. Kxf5 {[%clk 0:01:00.4]} 41... Ne1
{[%clk 0:00:15.9]} 42. Ne6 {[%clk 0:00:45.4]} 42... Kc4 {[%clk 0:00:11.7]} 43.
Be5 {[%clk 0:00:37.4]} 43... Nd3 {[%clk 0:00:09.2]} 44. Bg3 {[%clk 0:00:34.6]}
44... Kb3 {[%clk 0:00:07.3]} 45. b5 {[%clk 0:00:30.2]} 45... Kxa3 {[%clk
0:00:06.4]} 46. Nd4 {[%clk 0:00:29.9]} 46... Kb4 {[%clk 0:00:05.2]} 47. Kg5
{[%clk 0:00:30.3]} 47... Kc4 {[%clk 0:00:05.4]} 48. Nc6 {[%clk 0:00:29.6]} 48...
Kxb5 {[%clk 0:00:05.2]} 49. Nxa7+ {[%clk 0:00:29.8]} 49... Ka6 {[%clk
0:00:05.7]} 50. Nc6 {[%clk 0:00:29.6]} 50... Kb5 {[%clk 0:00:05.6]} 51. Nd4+
{[%clk 0:00:24.7]} 51... Kc4 {[%clk 0:00:05.1]} 52. Nc2 {[%clk 0:00:22.6]} 52...
Kc3 {[%clk 0:00:04.7]} 53. Na3 {[%clk 0:00:20.4]} 53... Kb3 {[%clk 0:00:04.4]}
54. Nb5 {[%clk 0:00:19.9]} 54... Kc4 {[%clk 0:00:02.9]} 55. Nd6+ {[%clk
0:00:18.4]} 1-0